[Event "AUT Bundesliga 2024-25"]
[Site "Austria"]
[Date "2025.04.04"]
[Round "9.36"]
[White "Gschnitzer, Adrian"]
[Black "Hartl, Daniel"]
[Result "1-0"]
[Annotator "RC"]
[ECO "C55"]
[WhiteElo "2430"]
[BlackElo "2271"]
[PlyCount "91"]
[EventDate "2024.08.28"]
[EventType "team-tourn"]
[EventCountry "AUT"]
[SourceTitle "playchess.com"]
[Source "ChessBase"]
[SourceQuality "1"]
[TimeControl "40/5400+30:1800+30"]

1. e4 {[%emt 0:00:03]} e5 {[%emt 0:00:06]} 2. Nf3 {[%emt 0:00:05]} Nc6 {[%emt 0:00:04]} 3. Bc4 {[%emt 0:00:19]} Nf6 {[%emt 0:00:07]} 4. d3 {[%emt 0:00:08]} Be7 {[%emt 0:00:07]} 5. O-O {[%emt 0:00:08]} O-O {[%emt 0:00:04]} 6. Re1 {[%emt 0:00:08]} d6 {[%emt 0:00:07]} 7. a4 {[%emt 0:00:09]} Na5 {[%emt 0:00:08]} 8. Ba2 {[%emt 0:00:09]} c5 {[%emt 0:00:05]} 9. c3 {[%emt 0:00:17]} Nc6 {[%emt 0:00:06]} 10. Na3 {[%emt 0:00:17]} Be6 {[%emt 0:00:06]} 11. Bxe6 {[%emt 0:01:17]} fxe6 {[%emt 0:00:06]} 12. Nc4 {[%emt 0:09:33]} h6 {[%emt 0:00:20]} 13. Bd2 {[%emt 0:01:29]} Qe8 {[%emt 0:09:23]} 14. b4 {[%emt 0:02:54]} cxb4 {[%emt 0:00:08]} 15. cxb4 {[%emt 0:00:08]} Qg6 {[%emt 0:07:35]} 16. b5 {[%emt 0:07:03]} Nd4 {[%emt 0:00:42]} 17. Nxd4 {[%emt 0:00:57]} exd4 {[%emt 0:00:07]} 18. Bb4 {[%emt 0:04:38]} Rad8 {[%emt 0:11:07]} 19. Ra2 {[%emt 0:13:24]} Nh5 {[%emt 0:04:35]} 20. g3 {[%emt 0:06:14]} Rf7 {[%emt 0:15:52]} 21. e5 {[%emt 0:07:11]} d5 {[%emt 0:00:24]} 22. Bxe7 {[%emt 0:00:33]} Rxe7 {[%emt 0:00:06]} 23. Nd6 {[%emt 0:00:18]} Nf4 {[%emt 0:05:46]} 24. Rd2 {[%emt 0:00:36]} Nh3+ {[%emt 0:00:38]} 25. Kg2 {[%emt 0:09:58]} Ng5 {[%emt 0:00:11]} 26. Qg4 {[%emt 0:01:30]} Kh7 {[%emt 0:03:01]} 27. f4 {[%emt 0:06:51]} Nf7 {[%emt 0:00:27]} 28. Qxg6+ {[%emt 0:01:02]} Kxg6 {[%emt 0:00:06]} 29. Nxf7 {[%emt 0:00:12]} Kxf7 {[%emt 0:00:25]} 30. Rc2 {[%emt 0:00:29]} b6 {[%emt 0:00:34]} 31. Rc6 {[%emt 0:03:06]} h5 {[%emt 0:05:23]} 32. Rec1 {[%emt 0:01:22]} Kg6 {[%emt 0:03:56]} 33. Kf3 {[%emt 0:00:53]} Kf7 {[%emt 0:00:37]} 34. Rc7 {[%emt 0:02:23]} Rde8 {[%emt 0:00:20]} 35. g4 {[%emt 0:03:11]} g6 {[%emt 0:02:09]} 36. Kg3 {[%emt 0:04:06]} Kg7 {[%emt 0:01:19]} 37. R1c6 {[%emt 0:02:27]} Kf7 {[%emt 0:03:21]} 38. Rxe7+ {[%emt 0:03:23]} Rxe7 {[%emt 0:00:23]} 39. gxh5 {[%emt 0:00:31]} gxh5 {[%emt 0:00:06]} 40. f5 {[%emt 0:00:10]} exf5 {[%emt 0:00:39]} 41. Kf4 {[%emt 0:30:10]} Ke8 {[%emt 0:32:04]} 42. e6 {[%emt 0:01:33]} Rg7 {[%emt 0:00:20]} 43. Rc8+ {[%emt 0:00:09]} Ke7 {[%emt 0:00:06]} 44. Rc7+ {[%emt 0:00:09]} Kf6 {[%emt 0:00:21]} 45. Rxg7 {[%emt 0:00:10]} Kxg7 {[%emt 0:00:06]} 46. Kxf5 {[%emt 0:00:11]} 1-0